[Event "*** Titled Tuesday Blitz"]
[Site "Chess.com"]
[Date "2021.03.02"]
[Round "10"]
[White "KubaGepard"]
[Black "SilviusTiberius"]
[Result "1-0"]
[WhiteElo "2403"]
[BlackElo "2485"]
[TimeControl "180+1"]
[EndTime "11:56:29 PST"]
[Termination "KubaGepard won by resignation"]

1. d4 {[%clk 0:03:00.9]} 1... Nf6 {[%clk 0:02:58.2]} 2. Nf3 {[%clk 0:03:00.9]}
2... e6 {[%clk 0:02:48.1]} 3. Bf4 {[%clk 0:02:58.9]} 3... d5 {[%clk 0:02:47.9]}
4. e3 {[%clk 0:02:58.8]} 4... Bd6 {[%clk 0:02:48.3]} 5. Bg3 {[%clk 0:02:59.4]}
5... O-O {[%clk 0:02:47.5]} 6. c3 {[%clk 0:02:59.3]} 6... c5 {[%clk 0:02:47.8]}
7. Nbd2 {[%clk 0:02:58.8]} 7... Nc6 {[%clk 0:02:47.4]} 8. Bd3 {[%clk 0:02:59]}
8... Bxg3 {[%clk 0:02:33.1]} 9. hxg3 {[%clk 0:02:58.3]} 9... h6 {[%clk 0:02:34]}
10. g4 {[%clk 0:02:45]} 10... Nxg4 {[%clk 0:02:30.6]} 11. e4 {[%clk 0:02:34.8]}
11... cxd4 {[%clk 0:02:24.6]} 12. Nxd4 {[%clk 0:02:34]} 12... Nge5 {[%clk
0:02:21.7]} 13. Bc2 {[%clk 0:02:28.9]} 13... Nxd4 {[%clk 0:01:58.3]} 14. cxd4
{[%clk 0:02:29.8]} 14... Nc6 {[%clk 0:01:58.5]} 15. Nf3 {[%clk 0:02:22.7]} 15...
Qa5+ {[%clk 0:01:53.5]} 16. Kf1 {[%clk 0:02:20.9]} 16... Nb4 {[%clk 0:01:29.8]}
17. e5 {[%clk 0:02:14.2]} 17... Nxc2 {[%clk 0:01:23.6]} 18. Qxc2 {[%clk
0:02:13.4]} 18... Bd7 {[%clk 0:01:24.5]} 19. Ng5 {[%clk 0:02:11.6]} 19... g6
{[%clk 0:00:16.1]} 20. Rxh6 {[%clk 0:02:10.4]} 20... Rfc8 {[%clk 0:00:07.4]} 21.
Rxg6+ {[%clk 0:02:01.9]} 21... Kf8 {[%clk 0:00:07.9]} 22. Rg8+ {[%clk
0:02:00.4]} 22... Ke7 {[%clk 0:00:08]} 23. Qh7 {[%clk 0:01:57.4]} 23... Be8
{[%clk 0:00:06.6]} 24. Rxe8+ {[%clk 0:01:53.3]} 24... Rxe8 {[%clk 0:00:05.3]}
25. Qxf7+ {[%clk 0:01:52.7]} 25... Kd8 {[%clk 0:00:05.6]} 26. Nxe6+ {[%clk
0:01:52.9]} 26... Rxe6 {[%clk 0:00:06.2]} 27. Qxe6 {[%clk 0:01:53.3]} 27... Rb8
{[%clk 0:00:06.7]} 28. Qd6+ {[%clk 0:01:52.1]} 1-0

[Event "*** Titled Tuesday Blitz"]
[Site "Chess.com"]
[Date "2021.03.02"]
[Round "10"]
[White "K_A_S_T_O_R"]
[Black "davidkalashian"]
[Result "0-1"]
[WhiteElo "2749"]
[BlackElo "2601"]
[TimeControl "180+1"]
[EndTime "11:56:40 PST"]
[Termination "davidkalashian won by resignation"]

1. e4 {[%clk 0:03:00.9]} 1... c6 {[%clk 0:02:54]} 2. c4 {[%clk 0:03:00.5]} 2...
g6 {[%clk 0:02:54.9]} 3. d4 {[%clk 0:02:59.5]} 3... Bg7 {[%clk 0:02:55.1]} 4.
Nc3 {[%clk 0:02:59.3]} 4... d6 {[%clk 0:02:55.4]} 5. Nf3 {[%clk 0:02:59.6]} 5...
Bg4 {[%clk 0:02:54.9]} 6. Be2 {[%clk 0:03:00]} 6... Qb6 {[%clk 0:02:54.1]} 7.
Na4 {[%clk 0:02:59.3]} 7... Qa5+ {[%clk 0:02:53.4]} 8. Bd2 {[%clk 0:02:59.7]}
8... Qc7 {[%clk 0:02:53.9]} 9. Be3 {[%clk 0:03:00.2]} 9... Nd7 {[%clk
0:02:51.1]} 10. Nc3 {[%clk 0:03:00.1]} 10... Ngf6 {[%clk 0:02:50.1]} 11. Ng1
{[%clk 0:03:00.2]} 11... Bxe2 {[%clk 0:02:48.5]} 12. Ngxe2 {[%clk 0:03:01.1]}
12... O-O {[%clk 0:02:48.6]} 13. f3 {[%clk 0:03:00.6]} 13... e5 {[%clk
0:02:45.9]} 14. d5 {[%clk 0:03:00.3]} 14... Nh5 {[%clk 0:02:44.4]} 15. Qd2
{[%clk 0:02:59.1]} 15... f5 {[%clk 0:02:41.6]} 16. exf5 {[%clk 0:02:51.8]} 16...
gxf5 {[%clk 0:02:39.9]} 17. O-O {[%clk 0:02:51.7]} 17... c5 {[%clk 0:02:34.8]}
18. Ng3 {[%clk 0:02:43.6]} 18... Nxg3 {[%clk 0:02:00.1]} 19. hxg3 {[%clk
0:02:44.5]} 19... a6 {[%clk 0:01:58.3]} 20. a4 {[%clk 0:02:42.4]} 20... Qd8
{[%clk 0:01:54.5]} 21. Bg5 {[%clk 0:02:35.5]} 21... Qe8 {[%clk 0:01:53]} 22. Kf2
{[%clk 0:02:32.7]} 22... Qg6 {[%clk 0:01:51.2]} 23. Rh1 {[%clk 0:02:32.6]} 23...
e4 {[%clk 0:01:40.6]} 24. Bf4 {[%clk 0:02:07.5]} 24... Rae8 {[%clk 0:01:34.1]}
25. Rae1 {[%clk 0:01:58.9]} 25... Ne5 {[%clk 0:01:24.3]} 26. Bxe5 {[%clk
0:01:58.5]} 26... Bxe5 {[%clk 0:01:22.1]} 27. Rh3 {[%clk 0:01:38.4]} 27... e3+
{[%clk 0:01:17.4]} 28. Rxe3 {[%clk 0:01:37.9]} 28... Bd4 {[%clk 0:01:13.7]} 29.
Nd1 {[%clk 0:01:38.2]} 29... Rxe3 {[%clk 0:01:12]} 30. Nxe3 {[%clk 0:01:39.1]}
30... Re8 {[%clk 0:01:11.9]} 31. Kf1 {[%clk 0:01:38.4]} 31... Bxe3 {[%clk
0:01:07.5]} 32. Qd3 {[%clk 0:01:37.6]} 32... f4 {[%clk 0:01:00.2]} 33. Qxg6+
{[%clk 0:01:32.2]} 33... hxg6 {[%clk 0:01:01.1]} 34. gxf4 {[%clk 0:01:32.2]}
34... Bxf4 {[%clk 0:01:00.4]} 35. Rh4 {[%clk 0:01:31.3]} 35... Be5 {[%clk
0:00:55.1]} 36. Re4 {[%clk 0:01:29.1]} 36... Kf7 {[%clk 0:00:54.7]} 37. b3
{[%clk 0:01:29.6]} 37... Bg3 {[%clk 0:00:49.2]} 0-1

[Event "*** Titled Tuesday Blitz"]
[Site "Chess.com"]
[Date "2021.03.02"]
[Round "10"]
[White "bogcsab"]
[Black "Darius321"]
[Result "0-1"]
[WhiteElo "2163"]
[BlackElo "2292"]
[TimeControl "180+1"]
[EndTime "11:56:41 PST"]
[Termination "Darius321 won by checkmate"]

1. d4 {[%clk 0:03:00.9]} 1... d5 {[%clk 0:02:59.4]} 2. c4 {[%clk 0:03:00.4]}
2... e6 {[%clk 0:02:59.8]} 3. cxd5 {[%clk 0:02:59.6]} 3... exd5 {[%clk
0:02:58.5]} 4. Nf3 {[%clk 0:03:00.3]} 4... c5 {[%clk 0:02:58.7]} 5. e3 {[%clk
0:02:58.6]} 5... Nf6 {[%clk 0:02:58.1]} 6. Be2 {[%clk 0:02:58.6]} 6... Nc6
{[%clk 0:02:58.2]} 7. O-O {[%clk 0:02:58.4]} 7... c4 {[%clk 0:02:58.2]} 8. b3
{[%clk 0:02:58.1]} 8... Be6 {[%clk 0:02:52.1]} 9. bxc4 {[%clk 0:02:57.7]} 9...
dxc4 {[%clk 0:02:51.9]} 10. Nc3 {[%clk 0:02:57.4]} 10... Bb4 {[%clk 0:02:47.7]}
11. Bb2 {[%clk 0:02:55.5]} 11... O-O {[%clk 0:02:44.6]} 12. Rc1 {[%clk
0:02:53.7]} 12... Qa5 {[%clk 0:02:37.8]} 13. Qc2 {[%clk 0:02:52]} 13... b5
{[%clk 0:02:33.1]} 14. Rfd1 {[%clk 0:02:48.7]} 14... Rfd8 {[%clk 0:02:26.6]} 15.
e4 {[%clk 0:02:48.6]} 15... Bxc3 {[%clk 0:02:22.6]} 16. Bxc3 {[%clk 0:02:48]}
16... b4 {[%clk 0:02:23]} 17. Ba1 {[%clk 0:02:43.1]} 17... b3 {[%clk 0:02:14]}
18. axb3 {[%clk 0:02:40.1]} 18... Nb4 {[%clk 0:02:14.1]} 19. Qd2 {[%clk
0:02:31.5]} 19... Nxe4 {[%clk 0:02:12.3]} 20. Qe1 {[%clk 0:02:31]} 20... cxb3
{[%clk 0:02:04.5]} 21. Nd2 {[%clk 0:02:28.6]} 21... Nc2 {[%clk 0:01:59.4]} 22.
Nxb3 {[%clk 0:02:22.2]} 22... Qxe1+ {[%clk 0:01:52.7]} 23. Rxe1 {[%clk
0:02:21.4]} 23... Nxe1 {[%clk 0:01:52.6]} 24. Rxe1 {[%clk 0:02:21]} 24... Bxb3
{[%clk 0:01:52.4]} 25. Bf3 {[%clk 0:02:18]} 25... f5 {[%clk 0:01:47.7]} 26. Bxe4
{[%clk 0:02:12.3]} 26... fxe4 {[%clk 0:01:46.6]} 27. Rxe4 {[%clk 0:02:11.6]}
27... Re8 {[%clk 0:01:46.3]} 28. f3 {[%clk 0:02:02.6]} 28... Bd5 {[%clk
0:01:43]} 29. Re5 {[%clk 0:01:56.4]} 29... Rxe5 {[%clk 0:01:42.8]} 30. dxe5
{[%clk 0:01:56.6]} 30... a5 {[%clk 0:01:41.6]} 31. f4 {[%clk 0:01:55.5]} 31...
a4 {[%clk 0:01:41.7]} 32. f5 {[%clk 0:01:55.1]} 32... a3 {[%clk 0:01:41.6]} 33.
Kf2 {[%clk 0:01:49.3]} 33... a2 {[%clk 0:01:41.1]} 34. g4 {[%clk 0:01:48.6]}
34... Rb8 {[%clk 0:01:39.9]} 35. e6 {[%clk 0:01:46.4]} 35... Rb1 {[%clk
0:01:37.8]} 36. Be5 {[%clk 0:01:45.3]} 36... a1=Q {[%clk 0:01:36.2]} 37. Bxa1
{[%clk 0:01:44.6]} 37... Rxa1 {[%clk 0:01:36.3]} 38. h4 {[%clk 0:01:44.6]} 38...
Ra3 {[%clk 0:01:35.6]} 39. Ke1 {[%clk 0:01:35.1]} 39... Kf8 {[%clk 0:01:34.7]}
40. Kd2 {[%clk 0:01:34]} 40... Ke7 {[%clk 0:01:34.3]} 41. g5 {[%clk 0:01:32.7]}
41... Bxe6 {[%clk 0:01:33.2]} 42. fxe6 {[%clk 0:01:31.9]} 42... Kxe6 {[%clk
0:01:33.3]} 43. h5 {[%clk 0:01:32.1]} 43... Kf5 {[%clk 0:01:32.3]} 44. h6 {[%clk
0:01:28.5]} 44... gxh6 {[%clk 0:01:31.6]} 45. gxh6 {[%clk 0:01:28]} 45... Kg6
{[%clk 0:01:32]} 46. Ke2 {[%clk 0:01:28]} 46... Kxh6 {[%clk 0:01:32.1]} 47. Kd2
{[%clk 0:01:28.6]} 47... Kg5 {[%clk 0:01:32.2]} 48. Kc2 {[%clk 0:01:29.3]} 48...
h5 {[%clk 0:01:31.5]} 49. Kb2 {[%clk 0:01:30]} 49... Rg3 {[%clk 0:01:31.5]} 50.
Kc2 {[%clk 0:01:30.4]} 50... h4 {[%clk 0:01:31.8]} 51. Kd2 {[%clk 0:01:31.1]}
51... h3 {[%clk 0:01:32.1]} 52. Ke2 {[%clk 0:01:31.8]} 52... Kg4 {[%clk
0:01:30.8]} 53. Kf2 {[%clk 0:01:32.2]} 53... h2 {[%clk 0:01:30.9]} 54. Ke2
{[%clk 0:01:29.8]} 54... h1=Q {[%clk 0:01:30.1]} 55. Kf2 {[%clk 0:01:29.8]}
55... Qh2+ {[%clk 0:01:30.1]} 56. Kf1 {[%clk 0:01:27.3]} 56... Rg1# {[%clk
0:01:31]} 0-1

[Event "*** Titled Tuesday Blitz"]
[Site "Chess.com"]
[Date "2021.03.02"]
[Round "10"]
[White "elohunter1999"]
[Black "champ2005"]
[Result "0-1"]
[WhiteElo "2653"]
[BlackElo "2991"]
[TimeControl "180+1"]
[EndTime "11:56:42 PST"]
[Termination "champ2005 won by checkmate"]

1. Nf3 {[%clk 0:03:00.9]} 1... Nf6 {[%clk 0:02:56.4]} 2. c4 {[%clk 0:02:59.9]}
2... g6 {[%clk 0:02:56.1]} 3. Nc3 {[%clk 0:02:59.9]} 3... Bg7 {[%clk 0:02:57]}
4. e4 {[%clk 0:02:59.8]} 4... d6 {[%clk 0:02:57.5]} 5. d4 {[%clk 0:02:59.7]}
5... O-O {[%clk 0:02:57.9]} 6. Be2 {[%clk 0:03:00.1]} 6... Qe8 {[%clk 0:02:58]}
7. O-O {[%clk 0:02:59.8]} 7... e5 {[%clk 0:02:58.7]} 8. Re1 {[%clk 0:02:58.2]}
8... exd4 {[%clk 0:02:58.4]} 9. Nxd4 {[%clk 0:02:52.4]} 9... Nxe4 {[%clk
0:02:58.3]} 10. Nd5 {[%clk 0:02:43.7]} 10... Qd8 {[%clk 0:02:57]} 11. Bf3 {[%clk
0:02:39.3]} 11... Nxf2 {[%clk 0:02:56.7]} 12. Kxf2 {[%clk 0:02:02.3]} 12... Qh4+
{[%clk 0:02:56.1]} 13. Kf1 {[%clk 0:02:00.2]} 13... Bxd4 {[%clk 0:02:54.2]} 14.
Re2 {[%clk 0:01:19.1]} 14... Nc6 {[%clk 0:02:41.7]} 15. Bf4 {[%clk 0:01:13.1]}
15... Be5 {[%clk 0:02:20]} 16. g3 {[%clk 0:01:06.3]} 16... Bh3+ {[%clk
0:02:16.7]} 17. Kg1 {[%clk 0:01:05.7]} 17... Qd8 {[%clk 0:02:14.6]} 18. Bh6
{[%clk 0:00:57.5]} 18... Re8 {[%clk 0:02:10.3]} 19. Re4 {[%clk 0:00:48.1]} 19...
Bf5 {[%clk 0:02:08.9]} 20. Rh4 {[%clk 0:00:48]} 20... Bxb2 {[%clk 0:02:02.7]}
21. Rb1 {[%clk 0:00:37.2]} 21... Bxb1 {[%clk 0:02:00.3]} 22. Qxb1 {[%clk
0:00:38.1]} 22... Bh8 {[%clk 0:01:53.2]} 23. Qxb7 {[%clk 0:00:33.3]} 23... Nd4
{[%clk 0:01:50.5]} 24. Bg2 {[%clk 0:00:26.9]} 24... Nf5 {[%clk 0:01:49.6]} 25.
Qxc7 {[%clk 0:00:22.5]} 25... Nxh4 {[%clk 0:01:45.6]} 26. gxh4 {[%clk
0:00:14.1]} 26... Qxh4 {[%clk 0:01:40]} 27. Bd2 {[%clk 0:00:09.9]} 27... Bd4+
{[%clk 0:01:39.6]} 28. Kf1 {[%clk 0:00:08.7]} 28... Qf2# {[%clk 0:01:39.5]} 0-1

[Event "*** Titled Tuesday Blitz"]
[Site "Chess.com"]
[Date "2021.03.02"]
[Round "10"]
[White "Konavets"]
[Black "iturrizaga"]
[Result "0-1"]
[WhiteElo "2929"]
[BlackElo "2858"]
[TimeControl "180+1"]
[EndTime "11:56:47 PST"]
[Termination "iturrizaga won by resignation"]

1. e4 {[%clk 0:03:00.9]} 1... c6 {[%clk 0:02:58.9]} 2. Nf3 {[%clk 0:03:01.3]}
2... d5 {[%clk 0:02:59.4]} 3. Nc3 {[%clk 0:03:00.9]} 3... dxe4 {[%clk
0:02:59.8]} 4. Nxe4 {[%clk 0:03:01.6]} 4... Nf6 {[%clk 0:03:00.6]} 5. Qe2 {[%clk
0:03:00.6]} 5... Nxe4 {[%clk 0:02:59.9]} 6. Qxe4 {[%clk 0:03:01.5]} 6... Qa5
{[%clk 0:03:00.4]} 7. Bc4 {[%clk 0:03:00.8]} 7... Bf5 {[%clk 0:02:59.3]} 8. Qf4
{[%clk 0:03:01.2]} 8... e6 {[%clk 0:02:59.5]} 9. O-O {[%clk 0:02:56.2]} 9... Nd7
{[%clk 0:02:59.4]} 10. Re1 {[%clk 0:02:56.6]} 10... Be7 {[%clk 0:02:58.9]} 11.
d4 {[%clk 0:02:56.1]} 11... O-O {[%clk 0:02:58.4]} 12. c3 {[%clk 0:02:56]} 12...
Bg6 {[%clk 0:02:51.5]} 13. Qg3 {[%clk 0:02:52]} 13... Rfe8 {[%clk 0:02:49.1]}
14. Bf4 {[%clk 0:02:48.8]} 14... Rac8 {[%clk 0:02:43]} 15. h4 {[%clk 0:02:46.1]}
15... Nf6 {[%clk 0:02:26.6]} 16. Be5 {[%clk 0:02:40.6]} 16... c5 {[%clk
0:02:22.5]} 17. Bb3 {[%clk 0:02:37.5]} 17... c4 {[%clk 0:01:45.1]} 18. Bd1
{[%clk 0:02:35.4]} 18... Qb6 {[%clk 0:01:39.2]} 19. d5 {[%clk 0:01:52.8]} 19...
exd5 {[%clk 0:01:31.4]} 20. Nd4 {[%clk 0:01:50.6]} 20... Bf8 {[%clk 0:01:14.5]}
21. Ba4 {[%clk 0:01:36.9]} 21... Ne4 {[%clk 0:01:08.8]} 22. Qf4 {[%clk
0:01:26.3]} 22... Rxe5 {[%clk 0:00:58.3]} 23. Qxe5 {[%clk 0:01:24.1]} 23... Qxb2
{[%clk 0:00:56.7]} 24. h5 {[%clk 0:01:19.5]} 24... Qxf2+ {[%clk 0:00:50.2]} 25.
Kh1 {[%clk 0:01:19.8]} 25... Bd6 {[%clk 0:00:45.2]} 26. Rxe4 {[%clk 0:01:08.2]}
26... Bxe5 {[%clk 0:00:30.7]} 27. Rxe5 {[%clk 0:01:08.1]} 27... Be4 {[%clk
0:00:29.4]} 0-1

[Event "*** Titled Tuesday Blitz"]
[Site "Chess.com"]
[Date "2021.03.02"]
[Round "10"]
[White "Leo_C"]
[Black "Mikedannnn"]
[Result "0-1"]
[WhiteElo "2444"]
[BlackElo "2574"]
[TimeControl "180+1"]
[EndTime "11:56:48 PST"]
[Termination "Mikedannnn won by resignation"]

1. d4 {[%clk 0:03:00.9]} 1... Nf6 {[%clk 0:02:59.1]} 2. c4 {[%clk 0:02:58]} 2...
c5 {[%clk 0:02:57.6]} 3. d5 {[%clk 0:02:57.4]} 3... e6 {[%clk 0:02:58.3]} 4. Nc3
{[%clk 0:02:56.9]} 4... exd5 {[%clk 0:02:59]} 5. cxd5 {[%clk 0:02:57.8]} 5...
Bd6 {[%clk 0:02:59.6]} 6. Nf3 {[%clk 0:02:54.6]} 6... O-O {[%clk 0:03:00.1]} 7.
g3 {[%clk 0:02:54.6]} 7... Re8 {[%clk 0:03:00.5]} 8. Bg2 {[%clk 0:02:53.8]} 8...
Bc7 {[%clk 0:03:01.1]} 9. O-O {[%clk 0:02:52.2]} 9... d6 {[%clk 0:03:01.7]} 10.
Nd2 {[%clk 0:02:51.8]} 10... a6 {[%clk 0:03:02.4]} 11. a4 {[%clk 0:02:51.3]}
11... Nbd7 {[%clk 0:03:03.1]} 12. Nc4 {[%clk 0:02:43.5]} 12... Rb8 {[%clk
0:03:03]} 13. Bf4 {[%clk 0:02:36]} 13... Nf8 {[%clk 0:03:02.3]} 14. a5 {[%clk
0:02:30.2]} 14... Ng6 {[%clk 0:03:02.5]} 15. Bg5 {[%clk 0:02:25.1]} 15... h6
{[%clk 0:03:02.2]} 16. Bd2 {[%clk 0:02:13.7]} 16... Ne5 {[%clk 0:03:02]} 17.
Nxe5 {[%clk 0:02:12]} 17... Rxe5 {[%clk 0:02:58.7]} 18. Bf4 {[%clk 0:01:36.3]}
18... Re8 {[%clk 0:02:56.2]} 19. e4 {[%clk 0:01:31]} 19... Ng4 {[%clk
0:02:54.8]} 20. h3 {[%clk 0:01:20.3]} 20... Ne5 {[%clk 0:02:54.4]} 21. Qa4
{[%clk 0:01:14]} 21... Bd7 {[%clk 0:02:53.8]} 22. Qb3 {[%clk 0:01:13.5]} 22...
Nd3 {[%clk 0:02:50]} 23. Be3 {[%clk 0:01:07.5]} 23... Bxa5 {[%clk 0:02:45.5]}
24. Qc2 {[%clk 0:00:59.2]} 24... c4 {[%clk 0:02:43.3]} 25. f4 {[%clk 0:00:39.5]}
25... b5 {[%clk 0:02:41.7]} 26. Ne2 {[%clk 0:00:28.8]} 26... f5 {[%clk
0:02:29.2]} 27. Nd4 {[%clk 0:00:20.5]} 27... fxe4 {[%clk 0:02:28.8]} 28. f5
{[%clk 0:00:20.2]} 28... Bb6 {[%clk 0:02:20]} 29. Kh1 {[%clk 0:00:19.9]} 29...
Qf6 {[%clk 0:02:18.1]} 30. Qc3 {[%clk 0:00:13.5]} 30... b4 {[%clk 0:02:05.8]}
31. Qxc4 {[%clk 0:00:13.4]} 31... Bb5 {[%clk 0:02:05.5]} 32. Nxb5 {[%clk
0:00:12.4]} 32... axb5 {[%clk 0:02:06.4]} 33. Qxb5 {[%clk 0:00:07]} 33... Bxe3
{[%clk 0:02:05.8]} 34. Qc4 {[%clk 0:00:07.4]} 34... Nxb2 {[%clk 0:02:03.1]} 35.
Qe2 {[%clk 0:00:06.4]} 35... Bd4 {[%clk 0:02:01.5]} 36. Rab1 {[%clk 0:00:06.6]}
36... Nd3 {[%clk 0:02:00.5]} 37. Rfd1 {[%clk 0:00:06.4]} 37... Nf2+ {[%clk
0:01:58.4]} 0-1

[Event "*** Titled Tuesday Blitz"]
[Site "Chess.com"]
[Date "2021.03.02"]
[Round "10"]
[White "ellennilssen"]
[Black "maxip32"]
[Result "1/2-1/2"]
[WhiteElo "2306"]
[BlackElo "2511"]
[TimeControl "180+1"]
[EndTime "11:56:51 PST"]
[Termination "Game drawn by repetition"]

1. c4 {[%clk 0:03:00.9]} 1... g6 {[%clk 0:02:59.3]} 2. Nc3 {[%clk 0:03:00.2]}
2... Bg7 {[%clk 0:02:48.4]} 3. g3 {[%clk 0:03:00.1]} 3... d6 {[%clk 0:02:47.6]}
4. Bg2 {[%clk 0:02:57]} 4... Nf6 {[%clk 0:02:47.3]} 5. Nf3 {[%clk 0:02:55.4]}
5... O-O {[%clk 0:02:48.2]} 6. O-O {[%clk 0:02:54.8]} 6... e5 {[%clk 0:02:48.4]}
7. d3 {[%clk 0:02:54.8]} 7... a5 {[%clk 0:02:47.7]} 8. Bg5 {[%clk 0:02:46.2]}
8... h6 {[%clk 0:02:47.3]} 9. Bd2 {[%clk 0:02:44.6]} 9... Re8 {[%clk 0:02:40.9]}
10. Rb1 {[%clk 0:02:44.6]} 10... c6 {[%clk 0:02:40.4]} 11. a3 {[%clk 0:02:43.7]}
11... d5 {[%clk 0:02:40]} 12. cxd5 {[%clk 0:02:37.8]} 12... cxd5 {[%clk
0:02:40.9]} 13. b4 {[%clk 0:02:34.4]} 13... axb4 {[%clk 0:02:39.4]} 14. axb4
{[%clk 0:02:35.3]} 14... d4 {[%clk 0:02:39.7]} 15. Ne4 {[%clk 0:02:29.7]} 15...
Nd5 {[%clk 0:02:39.5]} 16. Qc1 {[%clk 0:02:27.2]} 16... Kh7 {[%clk 0:02:38.1]}
17. h4 {[%clk 0:02:26]} 17... b6 {[%clk 0:02:35.7]} 18. h5 {[%clk 0:02:22.9]}
18... Bb7 {[%clk 0:02:35.2]} 19. hxg6+ {[%clk 0:02:18.7]} 19... fxg6 {[%clk
0:02:36.1]} 20. Nh2 {[%clk 0:02:13.8]} 20... Na6 {[%clk 0:02:22.8]} 21. Ng4
{[%clk 0:02:03.6]} 21... Rc8 {[%clk 0:02:22.6]} 22. Qb2 {[%clk 0:01:57.4]} 22...
Nac7 {[%clk 0:02:18.3]} 23. Rfc1 {[%clk 0:01:52.7]} 23... Nb5 {[%clk 0:02:15.5]}
24. Rxc8 {[%clk 0:01:42.3]} 24... Qxc8 {[%clk 0:02:15.4]} 25. Bh3 {[%clk
0:01:41.2]} 25... Qc6 {[%clk 0:02:08.1]} 26. Rc1 {[%clk 0:01:39.9]} 26... Ndc3
{[%clk 0:02:08]} 27. Bg2 {[%clk 0:01:38.9]} 27... Nxe2+ {[%clk 0:02:05.3]} 28.
Kf1 {[%clk 0:01:35.7]} 28... Nxc1 {[%clk 0:02:05.2]} 29. Ng5+ {[%clk 0:01:34.2]}
29... hxg5 {[%clk 0:02:04.9]} 30. Bxc6 {[%clk 0:01:34.7]} 30... Nxd3 {[%clk
0:01:59.7]} 31. Qc2 {[%clk 0:01:28.9]} 31... Nxb4 {[%clk 0:01:46.7]} 32. Bxb4
{[%clk 0:01:26.7]} 32... Rc8 {[%clk 0:01:46.7]} 33. f3 {[%clk 0:00:42.1]} 33...
Bxc6 {[%clk 0:01:40.2]} 34. Qh2+ {[%clk 0:00:41.8]} 34... Kg8 {[%clk 0:01:39.3]}
35. Qa2+ {[%clk 0:00:41.6]} 35... Kh7 {[%clk 0:01:31.7]} 36. Qh2+ {[%clk
0:00:39.6]} 36... Kg8 {[%clk 0:01:30.4]} 37. Qa2+ {[%clk 0:00:39.9]} 37... Kh7
{[%clk 0:01:19.4]} 38. Qh2+ {[%clk 0:00:39.9]} 1/2-1/2

[Event "*** Titled Tuesday Blitz"]
[Site "Chess.com"]
[Date "2021.03.02"]
[Round "10"]
[White "Aradhya2000"]
[Black "Julianos82"]
[Result "1-0"]
[WhiteElo "2521"]
[BlackElo "2363"]
[TimeControl "180+1"]
[EndTime "11:56:54 PST"]
[Termination "Aradhya2000 won by resignation"]

1. d4 {[%clk 0:03:00.9]} 1... d5 {[%clk 0:02:59.7]} 2. c4 {[%clk 0:03:00]} 2...
dxc4 {[%clk 0:03:00.6]} 3. e4 {[%clk 0:02:59.6]} 3... Nc6 {[%clk 0:02:59.8]} 4.
Nf3 {[%clk 0:02:59.6]} 4... Bg4 {[%clk 0:02:59.5]} 5. d5 {[%clk 0:02:59.3]} 5...
Ne5 {[%clk 0:02:54.8]} 6. Bf4 {[%clk 0:02:59.2]} 6... Ng6 {[%clk 0:02:53.7]} 7.
Be3 {[%clk 0:02:59.3]} 7... e5 {[%clk 0:02:52.8]} 8. Bxc4 {[%clk 0:02:58.6]}
8... a6 {[%clk 0:02:53.2]} 9. O-O {[%clk 0:02:57.6]} 9... Nf6 {[%clk 0:02:53.1]}
10. Nc3 {[%clk 0:02:54]} 10... Bd6 {[%clk 0:02:52.2]} 11. Be2 {[%clk 0:02:50.7]}
11... Qe7 {[%clk 0:02:49.2]} 12. a4 {[%clk 0:02:36.9]} 12... O-O {[%clk
0:02:42.6]} 13. Nd2 {[%clk 0:02:31.8]} 13... Bd7 {[%clk 0:02:38.9]} 14. Nb3
{[%clk 0:02:19.7]} 14... Nf4 {[%clk 0:02:33.5]} 15. f3 {[%clk 0:02:19.2]} 15...
g5 {[%clk 0:02:18.3]} 16. g3 {[%clk 0:02:11.5]} 16... Nh3+ {[%clk 0:02:05.4]}
17. Kh1 {[%clk 0:02:10.7]} 17... h5 {[%clk 0:02:04.3]} 18. Na5 {[%clk
0:02:08.7]} 18... Rab8 {[%clk 0:01:58]} 19. Nc4 {[%clk 0:02:07.6]} 19... Kg7
{[%clk 0:01:52.9]} 20. Qd2 {[%clk 0:02:04.4]} 20... Kg6 {[%clk 0:01:41.7]} 21.
Nxd6 {[%clk 0:02:01.6]} 21... cxd6 {[%clk 0:01:38.5]} 22. f4 {[%clk 0:02:01.8]}
22... exf4 {[%clk 0:01:28.3]} 23. gxf4 {[%clk 0:02:01.9]} 23... Nxe4 {[%clk
0:01:17.4]} 24. Bd3 {[%clk 0:02:01.9]} 24... Bf5 {[%clk 0:01:16.3]} 25. Qc2
{[%clk 0:02:01.7]} 25... Rbe8 {[%clk 0:01:02.6]} 26. Rae1 {[%clk 0:02:00.3]}
26... gxf4 {[%clk 0:00:27.1]} 27. Bd4 {[%clk 0:01:56.9]} 27... Ng3+ {[%clk
0:00:19.5]} 28. hxg3 {[%clk 0:01:56.3]} 28... Qxe1 {[%clk 0:00:19.3]} 29. Bxf5+
{[%clk 0:01:55.3]} 29... Kh6 {[%clk 0:00:19.3]} 30. Rxe1 {[%clk 0:01:54.9]}
30... Rxe1+ {[%clk 0:00:20.2]} 31. Kg2 {[%clk 0:01:46.7]} 31... Ng5 {[%clk
0:00:19.1]} 32. gxf4 {[%clk 0:01:46.4]} 32... Rg8 {[%clk 0:00:13.4]} 33. fxg5+
{[%clk 0:01:46.3]} 33... Rxg5+ {[%clk 0:00:14.3]} 34. Kf2 {[%clk 0:01:46.7]}
34... Reg1 {[%clk 0:00:14.5]} 35. Be4 {[%clk 0:01:45]} 35... h4 {[%clk
0:00:14.8]} 36. Be3 {[%clk 0:01:44.7]} 1-0

[Event "*** Titled Tuesday Blitz"]
[Site "Chess.com"]
[Date "2021.03.02"]
[Round "10"]
[White "kai_nov"]
[Black "alejogarcia1999"]
[Result "0-1"]
[WhiteElo "2399"]
[BlackElo "2533"]
[TimeControl "180+1"]
[EndTime "11:57:00 PST"]
[Termination "alejogarcia1999 won by checkmate"]

1. d4 {[%clk 0:03:00.9]} 1... Nf6 {[%clk 0:02:59.8]} 2. c4 {[%clk 0:03:00.6]}
2... g6 {[%clk 0:03:00.1]} 3. f3 {[%clk 0:03:00.6]} 3... Bg7 {[%clk 0:03:01]} 4.
e4 {[%clk 0:03:00.4]} 4... d6 {[%clk 0:03:01.9]} 5. Nc3 {[%clk 0:03:00.1]} 5...
O-O {[%clk 0:03:02.5]} 6. Bg5 {[%clk 0:02:59.6]} 6... h6 {[%clk 0:03:00.9]} 7.
Be3 {[%clk 0:02:56.9]} 7... e5 {[%clk 0:03:01.1]} 8. d5 {[%clk 0:02:54.9]} 8...
Nh5 {[%clk 0:03:00.5]} 9. Qd2 {[%clk 0:02:49.3]} 9... f5 {[%clk 0:02:54.8]} 10.
exf5 {[%clk 0:02:45.1]} 10... gxf5 {[%clk 0:02:50.1]} 11. O-O-O {[%clk
0:02:44.5]} 11... Qf6 {[%clk 0:02:44.3]} 12. Bd3 {[%clk 0:02:40]} 12... Na6
{[%clk 0:02:42.9]} 13. Nge2 {[%clk 0:02:37.1]} 13... Nb4 {[%clk 0:02:40.4]} 14.
Bb1 {[%clk 0:02:27.9]} 14... a5 {[%clk 0:02:39.9]} 15. a3 {[%clk 0:02:09.9]}
15... Na6 {[%clk 0:02:19.1]} 16. f4 {[%clk 0:01:51.6]} 16... Nc5 {[%clk
0:02:07.3]} 17. Bc2 {[%clk 0:01:49.9]} 17... Nxf4 {[%clk 0:01:51.8]} 18. Nxf4
{[%clk 0:01:48.2]} 18... exf4 {[%clk 0:01:52.4]} 19. Bxf4 {[%clk 0:01:47.6]}
19... Ne4 {[%clk 0:01:46]} 20. Bxe4 {[%clk 0:01:43.5]} 20... fxe4 {[%clk
0:01:46.2]} 21. Be3 {[%clk 0:01:13.5]} 21... Bg4 {[%clk 0:01:31.7]} 22. Rde1
{[%clk 0:01:12.5]} 22... Rae8 {[%clk 0:01:30]} 23. h3 {[%clk 0:01:11.9]} 23...
Bh5 {[%clk 0:01:29.6]} 24. g4 {[%clk 0:01:11.7]} 24... Bg6 {[%clk 0:01:29.9]}
25. Rhg1 {[%clk 0:00:58.2]} 25... Qf3 {[%clk 0:01:22.2]} 26. Bxh6 {[%clk
0:00:51.5]} 26... e3 {[%clk 0:01:18.6]} 27. Bxe3 {[%clk 0:00:48]} 27... Bxc3
{[%clk 0:01:04.3]} 28. Qxc3 {[%clk 0:00:38.3]} 28... Qe4 {[%clk 0:01:03.7]} 29.
Bd2 {[%clk 0:00:30.7]} 29... Qb1# {[%clk 0:01:02.5]} 0-1